bitfinex/quotes_ETHUSD_20241130
["timestamp","ask_amount","ask_price","bid_price","bid_amount"]
[1733004505273,0.79032624,3710.6,3710.0,2.69541]
[1733004505477,0.85169322,3710.5,3710.0,2.69541]
[1733004505675,0.59988186,3710.5,3710.0,2.69541]
[1733004506875,0.25180138,3710.4,3710.0,2.69541]
[1733004507081,0.59988186,3710.5,3710.1,2.69532]
[1733004507805,0.25183866,3710.4,3710.1,2.69532]
[1733004508011,0.59988186,3710.5,3710.1,2.69532]
[1733004508710,0.86178303,3710.4,3710.1,2.69532]
[1733004508876,0.60995143,3710.4,3710.1,2.69532]
[1733004513483,0.79032624,3710.6,3710.1,2.69532]
[1733004513789,0.2519451,3710.5,3710.1,2.69532]
[1733004514110,0.2519451,3710.4,3710.1,2.69532]
[1733004514306,0.79032624,3710.6,3710.1,2.69532]
[1733004514515,0.25195654,3710.5,3710.1,2.69532]
[1733004514810,0.25195654,3710.4,3710.1,2.69532]
[1733004515043,1.6115,3710.7,3710.6,2.69498]
[1733004515167,0.4992,3710.8,3710.7,6.0149]
[1733004515372,0.40322969,3711.8,3711.5,2.69432]
[1733004515572,0.65524015,3711.7,3711.3,2.69442]
[1733004515807,2.24271533,3711.6,3711.2,2.69453]
[1733004515977,0.65521533,3711.5,3711.2,2.69453]
[1733004516178,0.25201425,3711.4,3711.2,2.69453]
[1733004516385,0.25201425,3711.3,3711.2,2.69453]
[1733004517094,0.25196679,3711.3,3711.2,2.69453]
[1733004519427,0.25196679,3711.3,3711.2,2.44453]
[1733004520792,0.25177921,3711.3,3711.1,2.69461]
[1733004520996,1.99034674,3711.6,3711.3,2.69446]
[1733004521207,0.25178435,3711.5,3711.3,2.69446]
[1733004521421,0.25178435,3711.4,3711.3,2.69446]
[1733004522887,1.90834674,3711.8,3711.3,2.69446]
[1733004523087,0.25174965,3711.7,3711.3,2.69446]
[1733004523281,0.25174965,3711.6,3711.3,2.69446]
[1733004523488,0.25170258,3711.5,3711.3,2.69446]
[1733004523684,1.5055,3711.8,3711.0,2.69469]
[1733004523889,1.5055,3711.8,3711.3,2.69445]
[1733004524084,0.25169859,3711.7,3711.1,2.69461]
[1733004524318,0.25169859,3711.6,3711.1,2.69461]
[1733004524515,0.25169859,3711.5,3711.1,2.69461]
[1733004524723,1.5055,3711.8,3711.2,2.69452]
[1733004524899,0.7118695,3711.7,3710.9,2.69475]
[1733004525229,0.2516497,3711.6,3711.1,2.69459]
[1733004525388,4.19962,3711.8,3711.0,3.0]
[1733004525731,0.25162406,3711.7,3711.2,2.69454]
[1733004526023,0.25162406,3711.6,3711.2,2.69454]
[1733004526225,4.19962,3711.8,3711.2,2.69454]
[1733004526429,0.71452422,3711.7,3711.2,2.69454]
[1733004526591,0.25160959,3711.6,3711.2,2.69454]
[1733004526930,0.46291463,3711.7,3711.2,2.69454]
[1733004527224,0.25160784,3711.6,3711.0,3.0]
[1733004527428,0.46291463,3711.7,3711.0,3.0]
[1733004527642,2.69441,3711.4,3710.7,3.773366]
[1733004527785,2.69441,3711.4,3710.5,2.69503]
[1733004527786,1.5055,3711.1,3710.6,3.0]
[1733004527992,1.53229836,3711.1,3710.6,3.0]
[1733004528223,0.25157914,3711.0,3710.5,2.69504]
[1733004528396,2.69476,3710.9,3710.2,2.6952]
[1733004528596,1.5055,3710.8,3710.2,2.6952]
[1733004529128,2.94654287,3710.7,3709.8,2.69555]
[1733004529289,4.45210287,3710.6,3709.8,2.69555]
[1733004529486,0.25157287,3710.5,3709.9,2.69549]
[1733004529689,4.20053,3710.6,3709.9,2.69549]
[1733004529918,0.25156788,3710.5,3709.9,2.69549]
[1733004530102,4.20053,3710.6,3709.9,2.69549]
[1733004530307,0.25152751,3710.5,3709.9,2.69549]
[1733004530500,2.69506,3710.5,3709.8,2.69551]
[1733004530837,2.69506,3710.5,3709.9,3.0]
[1733004531187,2.69506,3710.5,3709.9,2.69546]
[1733004532853,0.25153164,3710.4,3709.9,2.69546]
[1733004533060,2.69506,3710.5,3709.9,2.69546]
[1733004533258,0.25153083,3710.4,3709.9,2.69546]
[1733004534419,3.49118549,3710.5,3709.9,2.69546]
[1733004534619,0.25149974,3710.4,3709.9,2.69546]
[1733004535119,3.49118549,3710.5,3710.0,2.69541]
[1733004535120,0.79612549,3710.5,3710.0,2.69541]
[1733004535322,1.04752932,3710.5,3710.0,2.69541]
[1733004535646,1.04752982,3710.5,3710.0,2.69541]
[1733004535855,0.79612549,3710.5,3710.0,2.69541]
[1733004536033,0.79612549,3710.5,3710.1,2.69529]
[1733004536034,1.04753443,3710.5,3710.1,2.69529]
[1733004536231,0.79612549,3710.5,3710.0,2.69541]
[1733004537034,1.04752825,3710.5,3710.0,2.69541]
[1733004537425,0.79612549,3710.5,3710.0,2.69541]
[1733004538074,1.5055,3710.6,3710.0,2.69541]
[1733004540072,4.20053,3710.6,3709.8,2.69554]
[1733004540289,1.75687428,3710.6,3710.0,2.6954]
[1733004541083,1.75687428,3710.6,3710.1,2.69532]
[1733004543084,0.25137428,3710.6,3710.5,6.01505]
[1733004550349,1.5599,3711.4,3711.0,2.69466]
[1733004550481,0.15599,3711.3,3711.0,2.69466]
[1733004550884,0.15599,3711.3,3711.2,2.69454]
[1733004551394,0.25146367,3711.7,3711.4,2.69434]
[1733004551680,0.25146367,3711.7,3710.6,4.98905203]
[1733004551681,1.5358,3711.5,3710.6,2.69497]
[1733004551907,0.02679836,3711.4,3710.8,2.69479]
[1733004552125,0.42568584,3711.3,3710.7,3.0]
[1733004552426,1.5358,3711.2,3710.7,5.69489]
[1733004553319,1.5358,3711.0,3710.6,2.69497]
[1733004554803,1.5358,3711.0,3710.4,2.69512]
[1733004555005,4.25735836,3711.0,3710.2,2.69524]
[1733004555228,1.5358,3710.8,3710.2,2.69524]
[1733004555442,0.45089339,3710.7,3710.0,2.69541]
[1733004555595,1.5358,3710.6,3710.0,2.69541]
[1733004556120,1.5358,3710.6,3709.7,2.69561]
[1733004556121,0.02679836,3710.5,3709.8,2.69554]
[1733004556291,0.02679836,3710.5,3709.8,2.69556]
[1733004556504,1.5358,3710.6,3710.0,2.6954]
[1733004556734,0.47084118,3710.5,3710.0,2.6954]
[1733004557030,0.47084118,3710.5,3709.8,2.69556]
[1733004557194,0.47084118,3710.5,3709.9,5.69545]
[1733004558111,0.42934519,3710.8,3709.5,1.078814]
[1733004558112,0.55,3710.2,3709.5,1.078814]
[1733004558311,0.55,3710.2,3709.2,2.69597]
[1733004558312,1.6503,3709.7,3709.2,2.69597]
[1733004558499,1.6503,3709.7,3709.2,2.69596]
[1733004561417,1.6503,3709.7,3709.2,2.69594]
[1733004562429,1.6503,3709.7,3709.0,2.69613]
[1733004562731,1.6503,3709.7,3709.3,5.39172]
[1733004563256,1.6503,3709.7,3709.3,2.69586]
[1733004568473,1.6503,3709.7,3708.9,0.02695847]
[1733004568668,1.6503,3709.7,3709.1,2.69607]
[1733004568836,1.6503,3709.7,3709.3,2.6959]
[1733004574184,1.6415,3709.6,3708.6,1.079027]
[1733004574389,1.6415,3709.4,3708.8,2.69622]
[1733004574602,1.6415,3709.4,3708.6,1.079027]
[1733004574783,1.6415,3709.4,3708.6,3.775387]
[1733004574966,1.6415,3709.4,3708.3,1.03667194]
[1733004575153,1.6415,3709.4,3709.0,2.69609]
[1733004576300,1.6415,3709.4,3708.9,2.69619]
[1733004576506,1.6415,3709.4,3709.1,2.69601]
[1733004576862,1.6415,3709.4,3709.2,2.69597]
[1733004577090,1.6415,3709.4,3709.1,2.69601]
[1733004577473,1.6415,3709.4,3708.7,3.32]
[1733004577677,1.6415,3709.4,3709.2,2.69595]
[1733004577858,1.6415,3709.4,3709.3,2.69592]
[1733004578089,2.69535,3710.1,3709.3,2.69592]
[1733004578090,2.1079,3710.0,3709.4,2.69582]
[1733004578267,5.05451873,3710.0,3709.3,2.69586]
[1733004578467,4.80332,3710.0,3709.3,2.69586]
[1733004578686,0.53350877,3709.9,3709.3,2.69586]
[1733004581096,0.53350877,3709.9,3709.2,2.69599]
[1733004581097,4.28030836,3709.8,3709.2,2.69599]
[1733004581469,4.25351,3709.8,3709.2,2.69599]
[1733004582212,0.25160438,3709.7,3709.2,2.69599]
[1733004582418,0.02679836,3709.7,3709.2,2.69599]
[1733004582732,1.5579,3709.8,3709.2,2.69599]
[1733004582905,0.25161378,3709.7,3709.2,2.69599]
[1733004583103,0.02679836,3709.7,3709.2,2.69599]
[1733004583317,0.25176428,3709.6,3709.3,2.69591]
[1733004583521,1.5579,3709.8,3709.3,2.69591]
[1733004583522,0.25176938,3709.7,3709.3,2.69591]
[1733004583719,1.5579,3709.8,3709.3,2.69591]
[1733004584031,0.2517699,3709.7,3709.3,2.69591]
[1733004584233,0.2517699,3709.6,3709.3,2.69591]
[1733004584443,1.5579,3709.8,3709.3,2.69591]
[1733004584600,0.25191405,3709.7,3709.3,2.69591]
[1733004584936,0.25191405,3709.6,3709.3,2.69591]
[1733004585131,1.5579,3709.8,3709.3,2.69591]
[1733004585333,0.25202956,3709.7,3709.4,2.69583]
[1733004585498,0.25202956,3709.6,3709.4,2.69583]
[1733004585694,0.55,3709.7,3709.4,2.69583]
[1733004585922,0.25202717,3709.6,3709.4,2.69583]
[1733004586130,0.55,3709.7,3709.4,2.69583]
[1733004586335,0.55,3709.5,3709.4,2.69583]
[1733004586536,0.55,3709.7,3709.4,2.69583]
[1733004586732,0.25211167,3709.6,3709.4,2.69583]
[1733004586940,0.55,3709.5,3709.4,2.69583]
[1733004587124,0.55,3709.7,3709.6,2.69568]
[1733004587327,0.40353291,3710.0,3709.6,0.539151]
[1733004587628,0.5,3710.7,3709.6,0.539151]
[1733004587629,1.5718,3710.5,3710.1,2.69534]
[1733004587809,0.65583012,3710.4,3710.1,2.69534]
[1733004588001,0.25224235,3710.3,3710.1,2.69534]
[1733004588225,0.25224235,3710.2,3710.1,2.69534]
[1733004588639,0.80224235,3710.2,3710.1,2.69534]
[1733004590094,0.55,3710.2,3710.1,2.69534]
[1733004590345,0.55,3710.4,3710.1,2.69534]
[1733004590544,0.55,3710.2,3710.1,2.69534]
[1733004590843,0.80215115,3710.2,3710.1,2.69534]
[1733004593333,0.55,3710.2,3710.1,2.69534]
[1733004593515,0.55,3710.4,3710.1,2.69534]
[1733004593722,0.55,3710.2,3710.1,2.69534]
[1733004594552,0.55,3710.4,3710.1,2.69534]
[1733004594855,0.55,3710.2,3710.1,2.69534]
[1733004595207,0.55,3710.4,3710.2,2.69523]
[1733004595406,0.80197265,3710.3,3710.2,2.69523]
[1733004595610,0.55,3710.3,3710.2,2.69523]
[1733004595945,0.55,3710.4,3710.2,2.69523]
[1733004603466,0.55,3710.6,3710.0,0.32]
[1733004603676,0.55,3710.6,3710.5,2.69505]
[1733004604860,0.5,3710.7,3710.6,6.01498]
[1733004605053,0.5,3710.7,3710.6,6.01318]
[1733004606231,0.5,3710.7,3710.6,5.69318]
[1733004607462,0.5,3710.7,3710.6,6.770096]
[1733004607768,0.5,3710.7,3710.6,7.090096]
[1733004612754,1e-05,3710.7,3710.6,8.12621576]
[1733004614098,1e-05,3710.7,3710.6,8.32621576]
[1733004615283,1.5458,3712.5,3712.4,2.69367]
[1733004615796,2.0958,3712.5,3712.4,2.69367]
[1733004616794,2.0958,3712.5,3712.1,2.69382]
[1733004617209,2.0958,3712.5,3712.3,2.69369]
[1733004617381,2.0958,3712.5,3712.3,2.69371]
[1733004625464,0.55,3712.4,3711.8,3.0]
[1733004625671,0.55,3712.4,3711.8,5.6941]
[1733004626178,0.55,3712.4,3711.4,0.32]
[1733004626179,1.5458,3712.5,3712.4,2.69367]
[1733004626397,1.5738,3712.9,3712.6,2.6935]
[1733004626591,0.55,3712.8,3712.6,2.6935]
[1733004629208,0.55,3712.8,3712.7,2.69345]
[1733004629595,0.55,3712.8,3712.5,2.69355]
[1733004629793,0.55,3712.8,3712.6,2.69352]
[1733004632283,0.04927876,3712.7,3712.6,2.69352]
[1733004632513,0.55,3712.8,3712.6,2.69352]
[1733004632705,0.04928453,3712.7,3712.6,2.69352]
[1733004633026,0.55,3712.8,3712.6,2.69352]
[1733004633221,0.04928453,3712.7,3712.6,2.69352]
[1733004633524,0.55,3712.8,3712.6,2.69352]
[1733004633734,0.04928453,3712.7,3712.4,2.69367]
[1733004633903,0.55,3712.8,3712.4,2.69367]
[1733004634091,0.04927274,3712.7,3712.4,2.69367]
[1733004634428,0.55,3712.8,3712.0,0.32]
[1733004634601,0.55,3712.8,3712.7,2.69345]
[1733004635736,0.55,3712.8,3712.6,2.69352]
[1733004636425,0.55,3712.8,3712.7,2.69345]
[1733004637892,0.5976727,3712.8,3712.7,2.69345]
[1733004651263,2.7e-06,3712.8,3712.7,7.39204105]
[1733004651471,1.5823,3714.6,3712.7,5.53879405]
[1733004651472,0.65589668,3714.3,3712.7,5.53879405]
[1733004651651,0.16838951,3715.0,3714.2,2.69236]
[1733004651652,0.40360966,3714.5,3714.2,2.69236]
[1733004651859,0.16838156,3714.9,3714.4,1.03611976]
[1733004652168,0.40350001,3715.5,3714.9,0.32]
[1733004652368,0.25156866,3715.8,3715.4,2.69148]
[1733004652685,0.25156866,3716.2,3715.4,1.03611976]
[1733004652891,0.25156866,3716.2,3714.9,0.32]
[1733004652892,1.5823,3716.5,3716.0,2.69105]
[1733004653046,1.5823,3716.5,3716.2,2.69091]
[1733004653243,1.5823,3716.5,3715.4,5.69144]
[1733004653474,0.52692421,3716.9,3716.5,2.69068]
[1733004653691,4.27246,3717.3,3716.5,2.69068]
[1733004653853,4.27246,3717.3,3716.3,5.69082]
[1733004653854,3.117446,3717.2,3716.3,5.69082]
[1733004654255,3.117446,3717.2,3716.4,2.69075]
[1733004654454,0.427246,3717.2,3716.3,3.0]
[1733004654655,0.427246,3717.2,3716.7,2.69053]
[1733004654871,0.03559465,3717.1,3717.0,2.69034]
[1733004655659,0.03559465,3717.1,3717.0,5.69034]
[1733004655866,3.29702177,3718.1,3717.1,3.0]
[1733004656194,0.55,3717.9,3717.2,2.69015]
[1733004656359,0.55,3717.7,3717.2,2.69015]
[1733004656687,0.55,3717.5,3717.1,3.0]
[1733004656907,0.55,3717.5,3716.6,3.0]
[1733004657078,0.03653083,3717.4,3716.9,3.0]
[1733004657286,0.03653083,3717.4,3716.6,5.69056]
[1733004657482,0.55,3717.3,3716.4,2.69071]
[1733004657671,0.03653083,3717.4,3716.1,2.69099]
[1733004657672,0.55,3717.1,3716.2,3.0]
[1733004658005,0.03649847,3717.0,3716.2,5.6909]
[1733004658364,0.55,3716.9,3716.1,3.0]
[1733004658565,0.03644087,3716.8,3716.1,3.0]
[1733004658806,0.03644087,3716.8,3715.9,3.0]
[1733004658963,0.21454409,3716.7,3715.9,3.0]
[1733004659165,0.03629882,3716.6,3715.9,5.69108]
[1733004659612,0.03629882,3716.6,3715.9,3.0]
[1733004659973,0.03629882,3716.6,3715.8,2.69118]
[1733004660169,0.03629882,3716.6,3715.6,2.6913]
[1733004660379,0.29414029,3716.5,3715.7,2.69127]
[1733004660579,0.58621892,3716.4,3715.1,3.01165]
[1733004660778,0.58621892,3716.4,3715.5,2.69142]
[1733004661509,0.58621892,3716.4,3715.5,2.69136]
[1733004662313,0.03621892,3716.4,3715.6,0.02690885]
[1733004662483,0.03621892,3716.4,3715.8,2.69118]
[1733004662809,0.03607109,3716.3,3716.2,2.69091]
[1733004662984,0.21454409,3716.7,3716.2,2.71781571]
[1733004663181,0.03620486,3716.6,3716.2,2.69091]
[1733004663412,1.559,3717.0,3716.4,2.69076]
[1733004663572,0.03629189,3716.9,3716.5,3.0]
[1733004664420,0.03629189,3716.9,3716.6,0.02690365]
[1733004664621,2.68979,3717.8,3716.6,3.0]
[1733004664836,0.0365587,3717.7,3716.8,3.0]
[1733004665144,0.0365587,3717.7,3717.2,3.0]
[1733004665300,0.0365587,3717.7,3717.4,2.69002]
[1733004665491,4.40428177,3718.1,3717.4,2.69002]
[1733004665492,1.71472177,3718.1,3717.5,3.02689553]
[1733004665693,0.03661143,3717.6,3717.5,5.68997]
[1733004665997,1.71472177,3718.1,3717.7,2.68982]
[1733004666198,0.03561656,3718.0,3717.5,3.0]
[1733004666409,0.03561656,3718.0,3717.2,0.569025]
[1733004666410,0.03561656,3718.0,3717.2,3.569025]
[1733004666616,0.03561656,3718.0,3717.4,2.69005]
[1733004666962,0.03561656,3718.0,3717.5,3.0]
[1733004667087,0.03561656,3718.0,3717.5,5.68997]
[1733004667283,2.68947,3718.2,3717.5,5.68997]
[1733004667487,0.03560871,3717.9,3717.5,5.68997]
[1733004667740,2.68925,3718.5,3717.7,2.68981]
[1733004667885,0.428565,3718.4,3717.7,2.68981]
[1733004668087,0.46446475,3718.4,3717.8,2.68974]
[1733004668898,0.03589975,3718.4,3717.8,2.68974]
[1733004669100,0.03589975,3718.4,3717.9,3.0]
[1733004669306,2.68889,3719.0,3718.2,2.68944]
[1733004669511,2.68887,3719.1,3718.3,2.68938]
[1733004669834,0.0361355,3719.0,3718.1,2.68953]
[1733004670032,2.68903,3718.8,3717.9,3.0]
[1733004670334,2.68914,3718.7,3717.9,3.0]
[1733004670559,0.03601573,3718.7,3718.2,2.68944]
[1733004670757,2.68849,3719.6,3718.3,0.02689043]
[1733004670899,1.5964,3719.8,3718.5,2.28836751]
[1733004671101,0.03507022,3719.5,3719.4,2.6886]
[1733004671400,0.03385271,3719.5,3719.2,2.68874]
[1733004671710,2.68825,3719.9,3719.1,2.68879]
[1733004672031,0.03409555,3719.8,3719.4,2.68859]
[1733004672400,2.68833,3719.8,3719.2,3.0]
[1733004672703,0.03407683,3719.7,3719.2,3.0]
[1733004673101,2.1464,3719.6,3718.6,3.0]
[1733004673317,2.68866,3719.4,3718.1,3.0]
[1733004673532,2.68866,3719.4,3718.6,2.68914]
[1733004673851,0.03416144,3719.3,3718.7,5.68908]
[1733004674029,0.03416144,3719.3,3718.7,3.0]
[1733004674363,2.72288144,3719.3,3718.7,3.0]
[1733004674926,0.55,3719.2,3717.9,2.28836751]
[1733004675129,0.55,3719.2,3718.5,3.0]
[1733004675342,0.03426971,3719.1,3718.5,3.0]
[1733004675845,2.72309971,3719.1,3718.5,3.0]
[1733004676011,0.03426971,3719.1,3718.5,3.0]
[1733004676209,0.03426971,3719.1,3718.6,3.0]
[1733004677303,2.72308971,3719.1,3718.3,5.68937]
[1733004677512,0.55,3718.9,3718.3,3.0]
[1733004677710,0.03426971,3719.1,3719.0,2.68889]
[1733004677906,3.53450808,3720.6,3718.9,3.0]
[1733004677907,1.6556,3720.3,3718.9,3.0]
[1733004678210,4.34355,3720.3,3719.5,3.0]
[1733004678409,1.6556,3720.3,3719.4,3.0]
[1733004678721,0.434341,3720.2,3719.6,2.68839]
[1733004678906,1.6556,3720.3,3719.7,2.68832]
[1733004679249,2.68772,3720.7,3719.4,3.0]
[1733004679250,1.554,3720.7,3719.8,2.68826]
[1733004679460,4.24167,3720.7,3720.0,2.68816]
[1733004679766,2.68788,3720.5,3719.6,2.68845]
[1733004679920,2.68795,3720.3,3719.7,3.0]
[1733004680440,2.68788,3720.5,3719.7,5.68835]
[1733004680656,3.23791,3720.4,3719.7,5.68835]
[1733004681159,2.72241634,3720.3,3719.7,3.0]
[1733004681463,2.68802,3720.2,3719.3,3.0]
[1733004681672,0.55,3720.1,3719.5,2.68853]
[1733004681819,2.72251843,3720.1,3719.5,3.0]
[1733004682266,2.72251843,3720.1,3719.2,3.0]
[1733004682451,0.55,3719.9,3719.2,3.0]
[1733004682652,1.554,3720.0,3719.2,3.0]
[1733004682653,1.554,3720.0,3719.3,3.0]
[1733004682836,0.03450699,3719.8,3719.0,3.32]
[1733004683212,0.55,3720.2,3719.6,2.68845]
[1733004683667,0.55,3720.1,3719.7,2.68838]
[1733004684066,1.5181,3720.4,3719.8,2.68829]
[1733004684373,7.68701,3721.6,3719.7,2.68838]
[1733004684374,1.5181,3721.0,3720.0,3.0]
[1733004684662,1.5181,3721.0,3720.2,2.68802]
[1733004685333,4.20555,3721.0,3720.2,2.68802]
[1733004685545,0.55,3720.9,3720.2,2.68802]
[1733004685753,0.55,3720.9,3720.3,2.68792]
[1733004687665,1.5181,3721.0,3720.8,2.68758]
[1733004688163,1.5181,3721.0,3720.5,2.68777]
[1733004688363,1.5181,3721.0,3720.7,2.68764]
[1733004688526,1.5181,3721.4,3720.7,2.68766]
[1733004688729,1.5181,3721.4,3721.0,2.68743]
[1733004689430,1.5181,3721.4,3720.3,2.85715951]
[1733004689431,1.5181,3721.4,3720.4,3.0]
[1733004689629,1.5181,3721.4,3721.1,2.68737]
[1733004690667,8.1,3722.8,3720.9,2.68751]
[1733004690668,1.5181,3721.9,3721.7,2.68693]
[1733004691382,1.5181,3721.9,3721.5,2.68708]
[1733004691383,2.68638,3722.5,3721.5,2.68708]
[1733004691532,2.68638,3722.5,3721.6,3.0]
[1733004691871,0.02679836,3722.4,3720.8,5.68759]
[1733004692071,2.68678,3722.0,3721.2,2.6873]
[1733004692270,2.68658,3722.2,3721.3,3.0]
[1733004692445,1.5181,3722.3,3721.6,2.68699]
[1733004692643,1.5181,3722.3,3721.3,3.0]
[1733004692849,1.5181,3722.3,3721.8,2.68685]
[1733004693181,1.5181,3722.3,3721.4,0.3]
[1733004693335,1.5181,3722.3,3721.8,2.68681]
[1733004694246,1.5181,3722.3,3721.4,3.3]
[1733004694474,1.5181,3722.3,3721.6,2.687]
[1733004694646,1.5181,3722.3,3721.6,3.17974505]
[1733004694942,0.0341239,3722.2,3721.6,3.17974505]
[1733004695630,1.5181,3722.3,3721.6,3.17974505]
[1733004695631,4.20461,3722.3,3721.6,3.17974505]
[1733004695831,0.0342862,3722.2,3721.6,3.17974505]
[1733004696030,0.0342862,3722.2,3721.7,2.68693]
[1733004696269,0.0342862,3722.2,3721.8,0.3179675]
[1733004696439,0.0342862,3722.2,3721.9,0.02686485]
[1733004696640,1.5181,3722.3,3721.9,2.68678]
[1733004696844,0.03429543,3722.2,3721.7,5.68693]
[1733004697574,0.03429543,3722.2,3721.8,2.68685]
[1733004697773,0.03429543,3722.2,3721.9,3.3047295]
[1733004698077,0.03397523,3722.1,3721.9,3.3047295]
[1733004698461,1.6775929,3722.7,3722.1,2.68663]
[1733004699459,4.3638229,3722.7,3721.9,3.3047195]
[1733004699668,2.6863,3722.6,3721.9,0.6179595]
[1733004699869,4.3638329,3722.7,3721.9,0.6179595]
[1733004700072,2.68644,3722.4,3721.9,0.6179595]
[1733004700445,2.68655,3722.3,3721.7,3.0]
[1733004700678,2.68655,3722.3,3721.1,1.39533]
[1733004700679,2.68681,3721.9,3721.5,3.0]
[1733004700883,0.55,3721.8,3721.0,2.68738]
[1733004701098,3.2369,3721.8,3721.2,2.68729]
[1733004701263,3.2369,3721.8,3721.3,0.537467]
[1733004701465,2.68702,3721.6,3721.3,0.537467]
[1733004701847,0.03402062,3721.5,3720.8,2.68758]
[1733004702079,0.03402062,3721.5,3720.9,2.68751]
[1733004702284,0.03402062,3721.5,3720.6,2.68772]
[1733004702285,0.55,3721.3,3720.6,1.075491]
[1733004702492,2.68741,3721.1,3720.6,1.075491]
[1733004702693,2.68748,3721.0,3720.6,1.075491]
[1733004702995,2.7212926,3721.0,3720.3,2.68791]
[1733004703204,2.7212926,3721.0,3720.4,0.5696]
[1733004703488,2.7212926,3721.0,3720.4,1.645237]
[1733004703789,2.68752,3720.9,3720.4,1.645237]
[1733004703992,3.27139997,3720.8,3719.8,2.6883]
[1733004704163,2.68782,3720.5,3719.8,2.6883]
[1733004704350,0.58380997,3720.8,3719.5,0.32]
[1733004704551,2.68779,3720.6,3719.8,2.68828]
[1733004704778,3.2376,3720.8,3719.8,2.68828]
[1733004704779,3.2376,3720.8,3719.9,0.268828]
[1733004704994,1.6246,3720.9,3719.9,0.268828]
[1733004704995,0.03348705,3720.5,3720.2,2.68801]
[1733004705204,0.03348705,3720.5,3720.1,2.68809]
[1733004705493,2.6876,3720.8,3720.2,3.0]
[1733004705933,0.03369696,3720.7,3720.2,3.0]
[1733004706134,0.03369696,3720.7,3720.3,0.568806]
[1733004706651,1.6246,3720.9,3720.3,3.256696]
[1733004706939,0.03368598,3720.8,3720.3,3.256696]
[1733004707318,0.03368598,3720.8,3720.3,0.568806]
[1733004707517,2.68775,3720.6,3720.0,3.0]
[1733004707747,2.68789,3720.4,3719.9,3.268828]
[1733004707970,2.68789,3720.4,3719.9,0.268828]
[1733004708265,0.03338921,3720.3,3720.0,2.6881]
[1733004708428,1.6246,3720.6,3719.6,1.075764]
[1733004708629,0.03359914,3720.5,3720.1,2.68808]
[1733004708950,0.03359914,3720.5,3720.0,2.28836751]
[1733004709132,0.03359914,3720.5,3720.4,5.68788]
[1733004709539,2.68725,3721.3,3720.6,2.68772]
[1733004709918,0.03351958,3721.2,3720.6,2.68772]
[1733004711430,0.03351958,3721.2,3720.7,2.68762]
[1733004711749,0.03351958,3721.2,3720.6,2.68772]
[1733004711750,4.31176,3721.4,3720.6,2.68772]
[1733004711950,0.03354364,3721.1,3720.6,2.68772]
[1733004712115,2.68725,3721.3,3720.6,3.525279]
[1733004712321,0.03239657,3721.0,3720.7,2.68765]
[1733004712545,2.68725,3721.3,3720.7,2.68765]
[1733004712751,0.03236762,3720.9,3720.7,2.68765]
[1733004713057,0.03233868,3720.8,3720.7,2.68765]
[1733004713220,2.68725,3721.3,3720.7,2.68765]
[1733004713428,0.03245446,3721.2,3720.7,2.68765]
[1733004714752,2.71979446,3721.2,3720.6,3.525279]
[1733004714953,2.71979446,3721.2,3720.6,2.68772]
[1733004715267,0.03245446,3721.2,3720.6,2.68772]
[1733004715478,2.68725,3721.3,3720.6,2.68772]
[1733004715630,0.03260644,3721.2,3720.6,2.68772]
[1733004716537,0.03260644,3721.2,3720.4,2.68781]
[1733004716538,2.71992644,3721.2,3720.4,2.68781]
[1733004716898,2.71992644,3721.2,3720.6,3.0]
[1733004717981,2.1715,3721.1,3720.1,0.22883675]
[1733004718142,2.1715,3721.1,3720.3,3.0]
[1733004718344,0.03218994,3721.0,3720.5,2.6878]
[1733004719382,2.71965994,3721.0,3720.3,5.68791]
[1733004722887,0.03218994,3721.0,3720.3,5.68791]
[1733004723085,0.03218994,3721.0,3720.2,3.0]
[1733004723286,4.85889,3721.1,3720.0,3.0]
[1733004723483,2.71984385,3721.0,3720.3,3.0]
[1733004723719,2.68752,3720.9,3720.3,3.0]
[1733004724216,0.03228062,3720.8,3720.3,3.0]
[1733004724516,2.71988062,3720.8,3720.3,3.0]
[1733004724717,0.03228062,3720.8,3720.3,3.0]
[1733004724920,2.71992062,3720.8,3720.3,3.0]
[1733004725082,2.68753,3720.9,3720.2,5.68802]
[1733004725412,1.61738062,3720.8,3720.2,5.68802]
[1733004726202,1.5851,3720.4,3719.6,1.075764]
[1733004726528,0.03213585,3720.3,3719.9,2.6882]
[1733004726830,0.03213585,3720.3,3720.2,2.68802]
[1733004727011,1.67538282,3722.2,3720.2,2.68802]
[1733004727012,1.83614371,3721.9,3720.2,3.68172236]
[1733004727211,1.5851,3721.9,3721.7,2.68694]
[1733004727526,0.03027476,3721.8,3721.7,2.68694]
[1733004727723,0.03027476,3721.8,3721.7,5.68694]
[1733004728728,0.03027476,3721.8,3721.5,5.68706]
[1733004730343,0.03027476,3721.8,3721.7,3.0]
[1733004730632,0.03027476,3721.8,3721.7,6.00694]
[1733004730845,1.6127,3722.6,3722.2,2.68652]
[1733004731044,1.6127,3722.6,3722.0,2.68671]
[1733004731205,0.0275308,3722.5,3722.0,2.68671]
[1733004731848,0.47612517,3722.5,3721.8,2.68686]
[1733004732033,0.47612517,3722.5,3721.3,3.0]
[1733004732034,2.68658,3722.2,3721.3,3.0]
[1733004732211,0.02745421,3722.1,3721.7,3.0]
[1733004733097,0.02745421,3722.1,3721.4,5.68714]
[1733004733367,2.71411421,3722.1,3721.4,5.68714]
[1733004733647,0.55,3722.0,3721.4,5.68714]
[1733004734146,0.02739634,3721.9,3721.4,5.68714]
[1733004734640,0.02739634,3721.9,3721.4,5.6871]
[1733004735544,1.6127,3721.8,3721.3,2.68721]
[1733004735699,3.23695,3721.7,3721.2,3.0]